bitfinex/quotes_SOLUSD_20240613
["timestamp","ask_amount","ask_price","bid_price","bid_amount"]
[1718294866821,2.5147,147.14,147.08,2.5155]
[1718294867013,2.5145,147.15,147.1,2.5152]
[1718294867224,2.5146,147.14,147.08,2.5155]
[1718294867437,2.5145,147.15,147.1,2.5152]
[1718294867614,2.5146,147.14,147.09,2.5154]
[1718294867949,2.5148,147.13,147.08,2.5155]
[1718294868238,10.0591,147.13,147.07,6.479]
[1718294868435,2.5153,147.1,147.05,2.516]
[1718294868633,2.5152,147.11,147.05,2.516]
[1718294868844,10.0574,147.16,147.05,10.0643]
[1718294869032,20.38,147.17,147.09,2.5153]
[1718294869227,2.5146,147.15,147.1,2.5152]
[1718294869624,2.5145,147.15,147.07,15.0941]
[1718294869937,12.5706,147.17,147.07,12.5788]
[1718294870112,12.5706,147.17,147.09,2.5153]
[1718294870312,7.0978653,147.18,147.07,16.1503]
[1718294870512,2.5141,147.17,147.12,2.5148]
[1718294870737,2.5142,147.16,147.1,2.5151]
[1718294870960,5.0279,147.18,147.1,2.5151]
[1718294870961,2.5144,147.15,147.1,2.5151]
[1718294871140,2.5143,147.16,147.11,2.5151]
[1718294871442,2.5146,147.14,147.09,2.5153]
[1718294871765,5.0289,147.15,147.08,20.0]
[1718294871917,2.515,147.12,147.07,18.666]
[1718294872114,2.5151,147.11,147.07,16.1503]
[1718294872335,2.6849,147.13,147.08,2.5155]
[1718294872509,0.17,147.12,147.04,8.3899199]
[1718294872713,0.17,147.12,147.07,2.5157]
[1718294872714,2.855,147.12,147.07,2.5157]
[1718294872916,2.855,147.12,147.06,2.5158]
[1718294873118,0.17,147.11,147.04,3.3572199]
[1718294873348,2.5157,147.08,147.04,0.8410199]
[1718294873546,8.0554,147.11,147.04,0.8410199]
[1718294873547,0.17,147.09,147.04,0.8410199]
[1718294873725,0.51,147.09,147.04,0.8410199]
[1718294874140,2.5157,147.08,147.04,0.8410199]
[1718294874747,5.541,147.09,147.04,0.8410199]
[1718294874917,2.516,147.06,147.04,0.8410199]
[1718294875113,8.0565,147.09,147.04,0.8410199]
[1718294875114,0.51,147.09,147.04,0.8410199]
[1718294875570,0.17,147.07,147.04,0.8410199]
[1718294875742,0.34,147.07,147.04,0.8410199]
[1718294875944,0.34,147.07,147.04,3.3573199]
[1718294876148,2.8558,147.07,147.04,0.8410199]
[1718294876344,0.34,147.07,147.04,0.8410199]
[1718294876780,2.5157,147.08,147.04,0.8410199]
[1718294876955,3.0255,147.09,147.04,3.3573199]
[1718294877154,25.4092,147.14,147.07,2.5157]
[1718294877479,2.5157,147.08,147.04,0.8410199]
[1718294877646,2.5158,147.07,147.04,0.8410199]
[1718294878042,100.0,147.15,147.04,0.8410199]
[1718294878241,2.5157,147.08,147.04,0.8410199]
[1718294878446,2.516,147.06,147.04,0.8410199]
[1718294878662,0.17,147.07,147.04,0.8410199]
[1718294878849,2.516,147.06,147.04,0.8410199]
[1718294879182,2.5158,147.07,147.04,0.8410199]
[1718294879360,0.51,147.08,147.04,3.3571199]
[1718294879361,0.34,147.08,147.04,3.3571199]
[1718294879686,2.5158,147.07,147.04,0.8410199]
[1718294879874,2.5159,147.06,147.04,0.8410199]
[1718294880051,2.516,147.06,147.04,0.8410199]
[1718294880472,0.34,147.08,147.04,0.8410199]
[1718294880681,2.516,147.06,147.04,0.8410199]
[1718294880866,2.6861,147.05,147.04,0.8410199]
[1718294881067,3.1961,147.05,147.04,0.8410199]
[1718294881591,7.10261306,147.08,147.04,0.8410199]
[1718294881758,2.8558,147.07,147.04,0.8410199]
[1718294882084,2.5159,147.06,147.04,0.8410199]
[1718294882260,7.1012753,147.1,147.04,5.8736199]
[1718294882585,2.5147,147.14,147.06,5.0318]
[1718294882888,11.1567,147.16,147.08,2.5155]
[1718294883096,2.5154,147.1,147.05,26.3847]
[1718294883590,2.5152,147.11,147.05,28.9007]
[1718294883793,2.5159,147.07,147.04,0.8410199]
[1718294884099,7.5456,147.11,147.04,0.8410199]
[1718294884100,2.5159,147.06,147.04,0.8410199]
[1718294884693,27.9256,147.11,147.04,0.8410199]
[1718294884694,2.5161,147.05,147.04,0.8410199]
[1718294885010,2.5161,147.06,147.04,0.8410199]
[1718294885165,10.0618,147.1,147.04,0.8410199]
[1718294885166,0.17,147.11,147.04,0.8410199]
[1718294885495,2.5148,147.13,147.07,2.5156]
[1718294885672,46.1155,147.16,147.04,18.4549199]
[1718294885673,2.5151,147.11,147.06,2.5159]
[1718294885859,5.029,147.15,147.07,2.5156]
[1718294886057,6.1281,147.16,147.04,0.8410199]
[1718294886270,255.6142,147.17,147.05,15.6022]
[1718294886475,253.1,147.17,147.08,12.5778]
[1718294886668,255.6142,147.17,147.09,5.0308]
[1718294887065,253.1,147.17,147.12,2.5149]
[1718294887563,253.1,147.17,147.12,7.5446]
[1718294887776,11.5711,147.25,147.14,5.0289]
[1718294887980,268.164,147.27,147.14,5.0289]
[1718294887981,2.5129,147.24,147.18,2.5138]
[1718294888178,10.0507,147.26,147.15,35.9173]
[1718294888381,5.0262,147.23,147.15,35.9173]
[1718294888592,2.5133,147.22,147.16,2.5141]
[1718294888790,260.19330063,147.27,147.15,45.975]
[1718294889097,6.0757,147.29,147.19,5.0273]
[1718294889262,2.5125,147.27,147.2,28.8783]
[1718294889459,17.5846,147.29,147.2,6.3649]
[1718294889698,5.0238,147.3,147.21,2.5132]
[1718294889906,5.0241,147.29,147.2,6.3649]
[1718294890071,7.09199846,147.31,147.2,6.3649]
[1718294890272,7.5377,147.26,147.16,6.1819]
[1718294890505,7.09199846,147.31,147.17,20.0]
[1718294890506,10.0479,147.3,147.17,20.0]
[1718294890694,5.0246,147.28,147.17,25.0281]
[1718294890996,2.5125,147.26,147.17,32.5702]
[1718294891177,5.0243,147.29,147.17,25.0281]
[1718294891378,5.0243,147.29,147.18,5.0278]
[1718294891575,2.514,147.17,147.16,6.1819]
[1718294891884,20.38,147.3,147.16,6.1819]
[1718294891885,107.09199846,147.31,147.16,6.1819]
[1718294892102,100.0,147.28,147.16,6.1819]
[1718294892401,2.5136,147.2,147.12,6.0446]
[1718294892598,2.5132,147.22,147.16,2.5141]
[1718294892787,0.51,147.23,147.14,5.0292]
[1718294892986,0.51,147.23,147.15,22.5143]
[1718294892987,2.5135,147.21,147.15,22.5143]
[1718294893302,0.17,147.2,147.16,2.5142]
[1718294893491,0.34,147.21,147.16,2.5142]
[1718294893690,0.17,147.21,147.13,20.0]
[1718294894004,2.513,147.23,147.17,2.5139]
[1718294894173,2.6832,147.22,147.17,2.5139]
[1718294894373,2.5131,147.23,147.17,2.5139]
[1718294894603,2.5131,147.23,147.18,2.5139]
[1718294894906,2.5132,147.22,147.16,2.5141]
[1718294895209,0.34,147.24,147.15,20.0]
[1718294895382,2.8529,147.24,147.18,2.5138]
[1718294895587,34.9538,147.3,147.17,20.0]
[1718294895792,2.5131,147.23,147.17,22.514]
[1718294896117,2.5132,147.23,147.17,2.514]
[1718294896411,2.5129,147.24,147.18,2.5138]
[1718294896899,2.5124,147.27,147.22,2.5131]
[1718294897105,2.5125,147.26,147.18,5.0278]
[1718294897309,2.5122,147.28,147.19,25.0273]
[1718294897496,2.5122,147.28,147.22,2.5131]
[1718294897497,2.5123,147.28,147.22,2.5131]
[1718294897695,17.5858,147.28,147.19,20.0]
[1718294897896,2.5128,147.25,147.2,2.5135]
[1718294898092,2.5128,147.25,147.19,2.5137]
[1718294898296,5.0238,147.3,147.17,17.5983]
[1718294898594,5.0238,147.3,147.2,2.5135]
[1718294898595,2.5126,147.26,147.2,2.5135]
[1718294898921,7.5359,147.3,147.21,5.0267]
[1718294898922,2.512,147.3,147.21,5.0267]
[1718294899236,2.5123,147.28,147.22,2.5131]
[1718294899526,0.17,147.27,147.22,2.5131]
[1718294899825,7.09199846,147.31,147.22,7.5396]
[1718294899988,273.48,147.33,147.23,20.0]
[1718294900192,2.5121,147.29,147.23,20.0]
[1718294900387,2.5122,147.28,147.23,22.513]
[1718294900607,273.48,147.33,147.21,11.1977]
[1718294900608,253.1,147.33,147.24,20.0]
[1718294900808,253.1,147.33,147.24,5.0257]
[1718294901014,255.6114,147.33,147.27,2.5122]
[1718294901400,2.5115,147.32,147.25,20.0]
[1718294901715,2.5117,147.31,147.26,2.5124]
[1718294902022,5.0232,147.32,147.24,2.5128]
[1718294902189,2.5117,147.31,147.26,2.5125]
[1718294902508,2.5117,147.31,147.21,16.2246]
[1718294902509,253.1,147.33,147.24,20.0]
[1718294902510,0.17,147.3,147.24,20.0]
[1718294902690,0.17,147.31,147.24,20.0]
[1718294902888,0.17,147.3,147.24,20.0]
[1718294903111,2.5118,147.3,147.25,2.5126]
[1718294903413,2.5122,147.28,147.23,2.5129]
[1718294903588,0.17,147.29,147.22,20.0]
[1718294903905,5.0244,147.28,147.22,20.0]
[1718294904106,5.0244,147.28,147.21,6.171]
[1718294904107,0.34,147.27,147.21,6.171]
[1718294904293,2.8525,147.27,147.21,6.171]
[1718294904494,2.5125,147.26,147.21,8.6843]
[1718294904694,2.5125,147.26,147.21,6.171]
[1718294904904,0.34,147.27,147.17,6.1526]
[1718294904905,2.5129,147.24,147.17,6.1526]
[1718294905105,2.8531,147.23,147.17,8.6665]
[1718294905322,0.34,147.25,147.18,2.5138]
[1718294905504,2.5134,147.21,147.16,2.5141]
[1718294905722,2.5137,147.19,147.15,0.04504941]
[1718294905899,0.17,147.22,147.14,15.2567]
[1718294905900,2.5139,147.18,147.14,15.2567]
[1718294906215,2.6839,147.18,147.12,2.5148]
[1718294906390,2.5141,147.17,147.12,2.5148]
[1718294906595,0.34,147.18,147.1,507.5456]
[1718294906790,0.34,147.18,147.12,2.5148]
[1718294907007,2.5141,147.17,147.12,2.5148]
[1718294907207,2.8543,147.16,147.11,2.515]
[1718294907633,2.8543,147.16,147.1,502.5152]
[1718294907634,2.6844,147.15,147.1,502.5152]
[1718294907915,0.34,147.14,147.1,502.5151]
[1718294908230,0.34,147.14,147.1,502.5152]
[1718294908819,5.028,147.18,147.1,502.5152]
[1718294908820,45.0,147.19,147.1,500.0]
[1718294909001,0.17,147.18,147.15,2.5143]
[1718294909188,2.6835,147.2,147.11,20.0]
[1718294909189,0.68,147.2,147.11,20.0]
[1718294909390,0.68,147.2,147.11,22.515]
[1718294909391,2.5143,147.16,147.11,22.515]
[1718294909700,0.34,147.17,147.12,2.5149]
[1718294909922,0.34,147.17,147.13,2.5146]
[1718294910397,0.34,147.17,147.12,2.5148]
[1718294910591,0.34,147.17,147.13,2.5147]
[1718294910798,0.17,147.18,147.11,25.03]
[1718294911007,0.17,147.18,147.11,20.0]
[1718294911008,2.5144,147.16,147.11,20.0]
[1718294911212,2.5144,147.15,147.11,20.0]
[1718294911501,2.6845,147.15,147.1,502.5152]
[1718294911699,0.17,147.15,147.11,2.515]
[1718294911916,2.6844,147.15,147.1,502.5152]
[1718294912116,0.17,147.15,147.11,2.515]
[1718294912416,0.17,147.17,147.13,2.5146]
[1718294912618,2.854,147.17,147.12,2.5148]
[1718294913328,2.5142,147.16,147.11,2.515]
[1718294913529,2.5144,147.15,147.1,502.5151]
[1718294913707,0.34,147.17,147.1,505.0304]
[1718294914030,2.8541,147.17,147.12,2.5149]
[1718294914226,2.5144,147.16,147.11,2.5151]
[1718294915132,2.5144,147.15,147.1,502.5152]
[1718294915537,2.5143,147.16,147.11,2.5151]
[1718294915913,0.34,147.17,147.13,2.5147]
[1718294916309,7.08987785,147.2,147.17,2.514]
[1718294916609,2.5138,147.19,147.14,2.5145]
[1718294916808,2.5139,147.18,147.13,20.0]
[1718294917114,2.5138,147.19,147.14,2.5145]
[1718294917419,20.38,147.23,147.13,20.0]
[1718294917624,0.17,147.19,147.15,2.5143]
[1718294917828,0.34,147.19,147.13,37.6028]
[1718294918012,0.34,147.22,147.13,37.6028]
[1718294918013,2.5133,147.22,147.15,10.0576]
[1718294918220,2.5135,147.21,147.16,2.5141]
[1718294918623,5.0265,147.22,147.15,22.5144]
[1718294918855,2.5138,147.19,147.15,20.0]
[1718294919018,37.9717,147.23,147.15,2.5144]
[1718294919220,2.5137,147.19,147.14,2.5145]
[1718294919448,2.6839,147.18,147.13,22.5147]
[1718294919645,2.6836,147.2,147.15,2.5144]
[1718294919955,0.17,147.19,147.13,25.0294]
[1718294920161,0.17,147.19,147.15,2.5143]
[1718294920457,0.17,147.19,147.14,2.5145]
[1718294920749,0.17,147.19,147.13,20.0]
[1718294920750,2.5138,147.19,147.15,2.5144]
[1718294920954,2.5138,147.19,147.14,2.5145]
[1718294921126,2.5139,147.18,147.14,2.5145]
[1718294921331,0.17,147.17,147.1,500.0]
[1718294921530,2.6844,147.16,147.11,2.515]
[1718294921838,2.5145,147.15,147.11,2.515]
[1718294922222,2.6843,147.16,147.11,2.515]
[1718294922620,2.6843,147.16,147.1,500.0]
[1718294922621,0.17,147.16,147.1,500.0]
[1718294922820,0.17,147.16,147.12,2.5148]
[1718294923020,0.17,147.16,147.14,2.5146]
[1718294923242,0.17,147.19,147.15,2.5143]
[1718294923448,3.1938,147.19,147.14,2.5145]
[1718294923750,2.514,147.18,147.14,2.5145]
[1718294924040,2.684,147.18,147.13,2.5146]
[1718294924247,0.17,147.18,147.1,500.0]
[1718294924448,0.17,147.19,147.15,2.5143]
[1718294924630,0.51,147.19,147.15,2.5143]
[1718294925144,3.0237,147.19,147.15,2.5143]
[1718294925326,3.0237,147.19,147.13,5.0294]
[1718294925327,3.0237,147.19,147.14,2.5145]
[1718294925528,2.514,147.18,147.13,2.5146]
[1718294925744,3.0238,147.19,147.14,2.5145]
[1718294926245,0.51,147.19,147.15,2.5143]
[1718294926626,3.0237,147.19,147.14,2.5145]
[1718294926844,2.5134,147.21,147.13,20.0]
[1718294927150,2.5133,147.22,147.17,2.514]
[1718294928145,255.6128,147.25,147.2,2.5135]
[1718294928340,2.5129,147.24,147.19,2.5137]
[1718294928552,2.5129,147.24,147.19,2.5136]
[1718294928753,253.1,147.25,147.24,2.5129]
[1718294929050,6.052,147.3,147.21,5.0267]
[1718294929252,5.0242,147.29,147.21,2.5132]
[1718294929622,5.0242,147.29,147.19,20.0]
[1718294929623,2.5124,147.27,147.19,20.0]
[1718294929827,2.5124,147.27,147.22,2.5131]
[1718294930135,2.5124,147.27,147.21,2.5133]
[1718294930340,2.5129,147.24,147.19,20.0]
[1718294930543,2.513,147.23,147.17,20.0]
[1718294930896,0.17,147.25,147.17,20.0]
[1718294931026,2.5133,147.22,147.17,22.514]
[1718294931233,2.5133,147.22,147.17,2.514]
[1718294931427,2.5134,147.21,147.16,2.5142]
[1718294931662,0.17,147.23,147.18,2.5138]
[1718294931831,0.17,147.23,147.17,7.5421]
[1718294932148,0.17,147.23,147.18,20.0]
[1718294932335,0.17,147.23,147.15,25.0287]
[1718294932535,0.17,147.23,147.15,20.0]
[1718294932851,48.1929,147.24,147.15,20.0]
[1718294933030,0.17,147.22,147.18,2.5138]
[1718294933230,0.34,147.22,147.18,2.5138]
[1718294933431,0.34,147.22,147.16,5.0284]
[1718294933656,0.34,147.22,147.15,20.0]
[1718294934030,2.8533,147.22,147.17,2.514]
[1718294934658,2.5134,147.21,147.16,2.5141]
[1718294934869,2.5134,147.21,147.15,20.0]
[1718294934870,2.6832,147.22,147.17,2.514]
[1718294935070,0.17,147.21,147.18,2.5138]
[1718294935354,0.34,147.21,147.18,2.5138]
[1718294935564,0.17,147.22,147.19,2.5137]
[1718294935768,2.5126,147.26,147.18,5.0277]
[1718294935945,5.0244,147.28,147.18,5.0277]
[1718294936258,5.0245,147.28,147.18,10.0555]
[1718294936447,5.0245,147.28,147.15,20.0]
[1718294936448,7.5378,147.26,147.15,35.0857]
[1718294936650,2.5131,147.23,147.18,2.5138]
[1718294937040,2.5135,147.2,147.15,22.5143]
[1718294937240,0.17,147.22,147.14,20.0]
[1718294937564,0.17,147.22,147.14,2.5145]
[1718294937565,2.5138,147.19,147.14,2.5145]
[1718294938462,2.514,147.18,147.13,2.5147]
[1718294938669,0.18,147.19,147.13,2.5147]
[1718294938874,0.18,147.19,147.12,2.5149]
[1718294938875,0.17,147.19,147.12,2.5149]
[1718294939168,0.34,147.19,147.14,2.5145]
[1718294939368,2.8538,147.19,147.14,2.5145]
[1718294939573,2.5139,147.18,147.13,2.5146]
[1718294939863,2.5141,147.17,147.13,2.5147]
[1718294940039,5.1973,147.2,147.13,2.5147]
[1718294940241,6.3051,147.22,147.14,5.0291]
[1718294940443,13.39955942,147.22,147.11,25.0301]
[1718294940644,0.17,147.21,147.11,20.0]
[1718294940844,2.5142,147.16,147.1,502.5151]
[1718294941156,120.55,147.21,147.1,500.0]
[1718294941476,2.5144,147.15,147.1,500.0]
[1718294941696,0.17,147.11,147.1,500.0]
[1718294942159,0.34,147.11,147.1,500.0]
[1718294942367,0.68,147.11,147.1,500.0]
[1718294942746,3.1951,147.11,147.1,500.0]
[1718294944002,28.6053,147.11,147.1,500.0]
[1718294944176,81.1506,147.11,147.1,500.0]
[1718294944356,48.1951,147.11,147.1,500.0]
[1718294944556,45.68,147.11,147.1,500.0]
[1718294944785,48.1951,147.11,147.1,500.0]
[1718294944988,21.8568,147.14,147.1,500.0]
[1718294945193,6.3306,147.14,147.1,500.0]
[1718294945358,2.5149,147.12,147.1,500.0]
[1718294945896,2.515,147.12,147.1,500.0]
[1718294946083,2.5148,147.13,147.1,500.0]
[1718294946783,2.5149,147.12,147.1,500.0]
[1718294947166,2.5151,147.11,147.1,500.0]
[1718294947560,3.0251,147.11,147.1,500.0]
[1718294947763,0.17,147.11,147.1,500.0]
[1718294947964,0.17,147.12,147.1,500.0]
[1718294948277,6.3306,147.14,147.1,500.0]
[1718294948482,0.68,147.13,147.1,500.0]
[1718294948709,33.4955,147.18,147.1,500.0]
[1718294948710,22.255,147.18,147.1,500.0]
[1718294948874,2.5143,147.16,147.11,2.5151]
[1718294949181,2.5143,147.16,147.1,502.5152]
[1718294949373,5.0281,147.17,147.1,500.0]
[1718294949574,2.5148,147.13,147.1,500.0]
[1718294949780,2.5146,147.14,147.1,500.0]
[1718294950280,2.8544,147.15,147.1,500.0]
[1718294950459,2.8545,147.15,147.1,500.0]
[1718294950670,2.5146,147.14,147.1,500.0]
[1718294950862,0.34,147.15,147.1,502.5151]
[1718294951072,0.34,147.15,147.1,500.0]
[1718294951273,7.09756408,147.17,147.11,2.5151]
[1718294951501,2.5143,147.16,147.1,502.5152]
[1718294951679,2.5143,147.16,147.11,2.5151]
[1718294951871,2.5144,147.15,147.1,502.5152]
[1718294952070,2.5146,147.14,147.1,500.0]
[1718294952269,2.5148,147.13,147.1,500.0]
[1718294952678,2.5146,147.14,147.1,500.0]
[1718294952877,3.1945,147.15,147.1,500.0]
[1718294953283,2.5146,147.14,147.1,500.0]
[1718294953707,0.68,147.15,147.1,500.0]
[1718294953878,2.5146,147.14,147.1,500.0]
[1718294955969,2.5148,147.13,147.1,500.0]
[1718294957279,2.5149,147.12,147.1,500.0]
[1718294957792,7.7153,147.11,147.1,500.0]
[1718294957997,70.831,147.11,147.1,495.38637839]
[1718294958168,60.7706,147.11,147.1,495.38637839]
[1718294958366,70.831,147.11,147.1,495.38637839]
[1718294960077,3.1951,147.11,147.1,495.38637839]
[1718294960969,39.9864,147.17,147.1,495.38637839]
[1718294961175,2.515,147.12,147.1,495.38637839]
[1718294962807,2.6851,147.11,147.1,495.38637839]
[1718294963093,3.1951,147.11,147.1,495.38637839]
[1718294963310,0.17,147.11,147.1,495.38637839]
[1718294963487,2.685,147.12,147.1,495.38637839]
[1718294964095,3.0251,147.11,147.1,495.38637839]
[1718294964401,3.1951,147.11,147.1,495.38637839]
[1718294964902,0.68,147.11,147.1,495.38637839]
[1718294965597,2.5149,147.12,147.1,495.38637839]
[1718294965811,2.8551,147.11,147.1,495.38637839]
[1718294965986,0.17,147.11,147.1,495.38637839]
[1718294966187,2.515,147.12,147.1,495.38637839]
[1718294967090,0.17,147.12,147.1,495.38637839]
[1718294967290,0.51,147.13,147.1,495.38637839]
[1718294967520,0.17,147.13,147.1,495.38637839]
[1718294967887,2.8546,147.14,147.1,495.38637839]
[1718294968132,0.17,147.13,147.1,495.38637839]
[1718294968590,2.6847,147.13,147.1,495.38637839]
[1718294970505,2.5149,147.12,147.1,495.38637839]
[1718294971111,2.8551,147.11,147.1,495.38637839]
[1718294971414,3.0251,147.11,147.1,495.38637839]
[1718294971803,25.831,147.11,147.1,495.38637839]
[1718294972111,70.831,147.11,147.1,495.38637839]
[1718294972306,91.211,147.11,147.1,476.45441168]
[1718294972792,197.5137,147.11,147.1,455.45441168]
[1718294972992,217.5137,147.11,147.1,117.17101168]
[1718294973201,218.3237,147.11,147.1,103.00358418]
[1718294973396,218.3237,147.11,147.1,100.96408993]
[1718294973699,118.3237,147.11,147.1,100.96408993]
[1718294973912,118.3237,147.11,147.1,98.92300429]
[1718294974421,118.3237,147.11,147.1,96.92300429]
[1718294974629,218.3237,147.11,147.1,94.38300429]
[1718294974788,218.3237,147.11,147.1,92.34191865]
[1718294975325,217.5137,147.11,147.1,90.30083301]
[1718294975495,217.5137,147.11,147.1,52.08533047]
[1718294975823,45.5414,147.05,147.04,0.8410199]
[1718294976031,190.5414,147.05,147.04,1.99e-05]
[1718294976623,190.8814,147.05,147.04,1.99e-05]
[1718294976836,311.0514,147.05,147.04,1.99e-05]
[1718294977289,211.0514,147.05,147.04,1.99e-05]
[1718294977497,0.17,147.01,146.95,15.3475]
[1718294977695,2.5174,146.98,146.95,15.3475]
[1718294977920,18.1281,147.01,146.95,15.3475]
[1718294978125,2.5172,146.99,146.95,15.3475]
[1718294979203,2.5173,146.98,146.95,15.3475]
[1718294979593,5.2044,146.99,146.95,15.3475]
[1718294979796,2.5176,146.96,146.95,15.3475]
[1718294980504,2.5176,146.97,146.95,15.3475]
[1718294980915,2.5174,146.98,146.95,15.3475]
[1718294981520,10.0645,147.06,146.95,15.3475]
[1718294981730,7.5478,147.07,146.96,10.0705]
[1718294981899,108.1285455,147.1,146.95,15.3475]
[1718294981900,2.5157,147.08,147.0,5.0339]
[1718294982111,2.5158,147.07,146.99,21.5628]
[1718294982315,5.0306,147.1,147.02,2.5165]
[1718294982512,2.5157,147.08,147.02,2.5165]
[1718294982832,2.5158,147.07,147.0,25.0339]
[1718294983012,2.5158,147.07,147.02,2.5166]
[1718294983449,2.5158,147.07,147.0,25.0339]
[1718294983450,2.5158,147.07,147.01,2.5167]
[1718294983621,2.5163,147.05,147.0,20.0]
[1718294983932,15.0934,147.09,147.0,20.0]
[1718294984113,2.5159,147.07,147.02,2.5165]
[1718294985138,2.5159,147.07,147.01,2.5166]
[1718294985316,2.516,147.06,147.01,2.5166]
[1718294985632,2.516,147.06,146.99,11.4943]
[1718294985633,0.17,147.06,146.99,6.4601]
[1718294985842,0.17,147.05,146.99,6.4601]
[1718294986138,2.5158,147.07,147.02,2.5166]
[1718294986336,0.17,147.08,147.01,5.0333]
[1718294986520,2.5163,147.04,146.99,8.9772]
[1718294986726,0.17,147.06,146.99,6.4601]
[1718294986925,2.686,147.06,147.01,2.5167]
[1718294987825,45.17,147.07,147.0,20.0]
[1718294988030,2.516,147.06,147.01,2.5168]
[1718294988458,2.5162,147.05,147.0,22.5169]
[1718294988644,2.5163,147.04,147.0,20.0]
[1718294989251,2.5167,147.02,146.99,6.4601]
[1718294989553,2.5166,147.02,146.99,6.4601]
[1718294989758,0.17,147.04,146.99,6.4601]
[1718294990065,2.5171,147.0,146.96,6.4974]
[1718294990357,2.6867,147.02,146.97,2.5175]
[1718294990571,2.5167,147.02,146.97,2.5175]
[1718294990974,2.6865,147.03,146.98,2.5173]
[1718294991468,2.5165,147.03,146.98,2.5173]
[1718294991634,2.5166,147.02,146.97,2.5174]
[1718294991840,5.0322,147.06,146.96,14.0503]
[1718294992048,5.0315,147.08,146.97,52.5525]
[1718294992255,2.516,147.06,147.01,2.5168]
[1718294992659,2.5161,147.05,147.0,22.5169]
[1718294992969,2.5166,147.03,147.0,20.0]
[1718294993149,2.5166,147.03,146.98,2.5172]
[1718294993463,2.5166,147.03,146.98,2.5173]
[1718294993662,2.5166,147.02,146.98,2.5173]
[1718294993868,2.5165,147.03,146.97,20.0]
[1718294994082,2.5165,147.03,146.99,2.5171]
[1718294994242,2.5165,147.03,146.98,2.5172]
[1718294995268,0.17,147.04,146.99,2.5171]
[1718294995447,2.6863,147.04,146.99,2.5171]
[1718294995657,2.5161,147.05,147.0,2.517]
[1718294996159,45.34,147.06,146.99,22.5171]
[1718294996160,2.5163,147.04,146.99,22.5171]
[1718294996672,2.5163,147.04,147.0,20.0]
[1718294996859,2.5162,147.05,147.0,2.5169]
[1718294997059,47.856,147.06,147.01,2.5168]
[1718294997580,47.856,147.06,146.98,32.5864]
[1718294997581,50.372,147.06,146.98,20.0]
[1718294997751,2.5163,147.04,146.99,2.517]
[1718294997940,0.34,147.06,147.01,2.5167]
[1718294998143,2.8561,147.06,147.01,2.5167]
[1718294998369,2.5161,147.05,147.01,2.5167]
[1718294998736,2.5161,147.05,147.0,2.5169]
[1718294999643,17.6076,147.1,146.98,20.0]
[1718294999974,2.5155,147.09,147.04,16.0683]
[1718295000148,2.5153,147.1,147.06,2.5159]
[1718295000334,2.5153,147.1,147.04,27.5128]
[1718295000335,5.0299,147.12,147.05,22.516]
[1718295000672,2.5156,147.08,147.05,19.0]
[1718295000904,17.6062,147.11,147.05,21.5161]
[1718295000905,2.5155,147.09,147.05,21.5161]
[1718295001066,2.5156,147.08,147.05,19.0]